bitfinex-derivatives/quotes_SOLF0:USTF0_20251025
["timestamp","ask_amount","ask_price","bid_price","bid_amount"]
[1761412283093,4.4342844,192.27,192.19,2.66]
[1761412283296,4.4342844,192.28,192.19,2.66]
[1761412283595,4.4342844,192.27,192.19,2.66]
[1761412283783,4.4342844,192.28,192.19,2.66]
[1761412283987,4.4342844,192.27,192.19,2.66]
[1761412284182,4.4342844,192.28,192.19,2.66]
[1761412284485,4.4342844,192.27,192.19,2.66]
[1761412284794,4.4342844,192.28,192.19,2.66]
[1761412284990,4.4342844,192.27,192.19,2.66]
[1761412285191,4.4342844,192.28,192.19,2.66]
[1761412285387,4.4342844,192.27,192.19,2.66]
[1761412285589,4.4342844,192.28,192.19,2.66]
[1761412285790,4.4342844,192.27,192.19,2.66]
[1761412286091,4.4342844,192.28,192.19,2.66]
[1761412286291,4.4342844,192.27,192.19,2.66]
[1761412286492,4.4342844,192.28,192.19,2.66]
[1761412286792,4.4342844,192.27,192.19,2.66]
[1761412287091,4.4342844,192.28,192.19,2.66]
[1761412287288,4.4342844,192.27,192.19,2.66]
[1761412287492,4.4342844,192.28,192.19,2.66]
[1761412287693,4.4342844,192.27,192.19,2.66]
[1761412287897,4.4342844,192.28,192.19,2.66]
[1761412288195,4.4342844,192.27,192.19,2.66]
[1761412288387,4.4342844,192.28,192.19,2.66]
[1761412288589,4.4342844,192.27,192.19,2.66]
[1761412288787,4.4342844,192.28,192.19,2.66]
[1761412288996,4.4342844,192.27,192.19,2.66]
[1761412289200,4.4342844,192.28,192.19,2.66]
[1761412289384,4.4342844,192.27,192.19,2.66]
[1761412289587,4.4342844,192.28,192.19,2.66]
[1761412289783,4.4342844,192.27,192.19,2.66]
[1761412289995,4.86926143,192.29,192.19,2.66]
[1761412289996,4.4342844,192.28,192.19,2.66]
[1761412290202,4.4342844,192.27,192.19,2.66]
[1761412290403,4.4342844,192.26,192.19,2.66]
[1761412290590,4.4342844,192.28,192.19,2.66]
[1761412290790,4.4342844,192.27,192.19,2.66]
[1761412291084,4.4342844,192.26,192.19,2.66]
[1761412291287,4.4342844,192.28,192.19,2.66]
[1761412291490,4.4342844,192.27,192.19,2.66]
[1761412291690,4.4342844,192.26,192.19,2.66]
[1761412291890,4.4342844,192.28,192.19,2.66]
[1761412292097,4.43628936,192.27,192.19,2.66]
[1761412292398,4.43628936,192.26,192.19,2.66]
[1761412292599,4.43628936,192.28,192.19,2.66]
[1761412292800,4.43628936,192.27,192.19,2.66]
[1761412293001,4.43628936,192.26,192.19,2.66]
[1761412293293,4.43628936,192.28,192.19,2.66]
[1761412293494,4.43628936,192.27,192.19,2.66]
[1761412293694,4.43628936,192.26,192.19,2.66]
[1761412293894,4.43628936,192.28,192.19,2.66]
[1761412294098,4.43628936,192.27,192.19,2.66]
[1761412294396,4.43628936,192.26,192.19,2.66]
[1761412294597,4.43628936,192.28,192.19,2.66]
[1761412294798,4.43628936,192.27,192.19,2.66]
[1761412294997,4.43628936,192.26,192.19,2.66]
[1761412295199,9.30555079,192.28,192.19,2.66]
[1761412295399,4.43628936,192.27,192.19,2.66]
[1761412295600,4.43628936,192.26,192.19,2.66]
[1761412295802,4.43628936,192.27,192.19,2.66]
[1761412296003,4.43628936,192.26,192.19,2.66]
[1761412296302,4.43628936,192.27,192.19,2.66]
[1761412296600,4.43628936,192.26,192.19,2.66]
[1761412296802,4.43628936,192.27,192.19,2.66]
[1761412296999,4.43628936,192.26,192.19,2.66]
[1761412297197,4.43628936,192.27,192.19,2.66]
[1761412297496,4.43628936,192.26,192.19,2.66]
[1761412297697,4.43628936,192.27,192.19,2.66]
[1761412297904,4.43628936,192.26,192.19,2.66]
[1761412298095,4.43628936,192.27,192.19,2.66]
[1761412298294,4.43628936,192.26,192.19,2.66]
[1761412298504,4.43628936,192.27,192.19,2.66]
[1761412298694,4.43628936,192.26,192.19,2.66]
[1761412298895,4.43628936,192.27,192.19,2.66]
[1761412299094,4.43628936,192.26,192.19,2.66]
[1761412299390,4.43628936,192.27,192.19,2.66]
[1761412299588,4.43628936,192.26,192.19,2.66]
[1761412299793,4.43628936,192.27,192.19,2.66]
[1761412300092,4.43628936,192.26,192.19,2.66]
[1761412300292,4.43628936,192.27,192.19,2.66]
[1761412300500,4.43628936,192.26,192.19,2.66]
[1761412300701,4.43628936,192.27,192.19,2.66]
[1761412300900,4.43628936,192.26,192.19,2.66]
[1761412301100,4.43628936,192.27,192.19,2.66]
[1761412301304,4.43628936,192.26,192.19,2.66]
[1761412301599,4.43628936,192.28,192.19,2.66]
[1761412301902,4.43628936,192.27,192.19,2.66]
[1761412302101,4.43628936,192.26,192.19,2.66]
[1761412302305,4.43628936,192.28,192.19,2.66]
[1761412302504,4.43628936,192.27,192.19,2.66]
[1761412302700,4.43628936,192.26,192.19,2.66]
[1761412302905,4.43628936,192.28,192.19,2.66]
[1761412303104,4.43628936,192.27,192.19,2.66]
[1761412303306,4.43628936,192.26,192.19,2.66]
[1761412303603,4.43628936,192.28,192.19,2.66]
[1761412303797,4.43628936,192.27,192.19,2.66]
[1761412303996,4.43628936,192.26,192.19,2.66]
[1761412304199,4.43628936,192.28,192.19,2.66]
[1761412304397,4.43628936,192.27,192.19,2.66]
[1761412304598,4.43628936,192.26,192.19,2.66]
[1761412304803,4.43628936,192.28,192.19,2.66]
[1761412305004,4.43628936,192.27,192.19,2.66]
[1761412305203,4.43628936,192.26,192.19,2.66]
[1761412305405,4.43628936,192.28,192.19,2.66]
[1761412305605,4.43628936,192.27,192.19,2.66]
[1761412305801,4.43628936,192.26,192.19,2.66]
[1761412306105,4.43628936,192.28,192.19,2.66]
[1761412306306,4.43628936,192.27,192.19,2.66]
[1761412306507,4.43628936,192.26,192.19,2.66]
[1761412306716,4.43628936,192.28,192.19,2.66]
[1761412306901,4.43628936,192.27,192.19,2.66]
[1761412307101,4.43628936,192.26,192.19,2.66]
[1761412307307,4.43628936,192.28,192.19,2.66]
[1761412307604,4.43628936,192.27,192.19,2.66]
[1761412307799,4.43628936,192.26,192.19,2.66]
[1761412308001,4.43663479,192.28,192.19,2.66]
[1761412308204,4.43663479,192.27,192.19,2.66]
[1761412308404,4.43663479,192.26,192.19,2.66]
[1761412308604,4.43663479,192.27,192.19,2.66]
[1761412308807,4.43663479,192.26,192.19,2.66]
[1761412309006,4.43663479,192.27,192.19,2.66]
[1761412309210,4.43663479,192.26,192.19,2.66]
[1761412309405,4.43663479,192.27,192.19,2.66]
[1761412309608,4.43663479,192.26,192.19,2.66]
[1761412309807,4.43663479,192.27,192.19,2.66]
[1761412310008,4.43663479,192.26,192.19,2.66]
[1761412310207,4.43663479,192.27,192.19,2.66]
[1761412310411,4.43663479,192.26,192.19,2.66]
[1761412310705,4.43663479,192.27,192.19,2.66]
[1761412310906,4.43663479,192.26,192.19,2.66]
[1761412311108,4.43663479,192.28,192.19,2.66]
[1761412311307,4.43663479,192.27,192.19,2.66]
[1761412311503,4.43663479,192.26,192.19,2.66]
[1761412311709,4.43663479,192.28,192.19,2.66]
[1761412311903,4.87192757,192.29,192.19,2.66]
[1761412311904,4.43663479,192.27,192.19,2.66]
[1761412312212,4.43663479,192.28,192.19,2.66]
[1761412312416,4.43663479,192.27,192.19,2.66]
[1761412312714,4.43663479,192.28,192.19,2.66]
[1761412312914,4.43663479,192.27,192.19,2.66]
[1761412313107,4.43663479,192.29,192.19,2.66]
[1761412313307,4.43663479,192.28,192.19,2.66]
[1761412313515,4.43663479,192.27,192.19,2.66]
[1761412313708,4.43663479,192.29,192.19,2.66]
[1761412313911,4.43663479,192.28,192.19,2.66]
[1761412314216,4.43663479,192.27,192.19,2.66]
[1761412314412,4.43663479,192.29,192.19,2.66]
[1761412314708,4.43663479,192.28,192.19,2.66]
[1761412314916,4.43663479,192.27,192.19,2.66]
[1761412315109,4.43663479,192.29,192.19,2.66]
[1761412315413,4.43663479,192.28,192.2,2.69]
[1761412315609,4.43663479,192.3,192.2,2.69]
[1761412315809,4.43663479,192.29,192.2,2.69]
[1761412316014,4.43663479,192.28,192.2,2.69]
[1761412316208,4.43663479,192.29,192.2,2.69]
[1761412316408,4.43663479,192.28,192.2,2.69]
[1761412316609,4.43663479,192.3,192.2,2.69]
[1761412316809,4.43663479,192.29,192.2,2.69]
[1761412317013,4.43663479,192.28,192.2,2.69]
[1761412317214,4.43663479,192.3,192.2,2.69]
[1761412317416,4.43663479,192.29,192.2,2.69]
[1761412317605,4.43663479,192.28,192.2,2.69]
[1761412317810,4.43663479,192.3,192.2,2.69]
[1761412318009,4.43663479,192.29,192.2,2.69]
[1761412318308,4.43663479,192.28,192.2,2.69]
[1761412318508,4.43663479,192.3,192.2,2.69]
[1761412318711,4.43663479,192.29,192.2,2.69]
[1761412318908,4.87192757,192.31,192.2,2.69]
[1761412318909,4.43663479,192.28,192.2,2.69]
[1761412319114,4.43663479,192.3,192.2,2.69]
[1761412319315,4.43663479,192.29,192.2,2.69]
[1761412319516,4.43663479,192.28,192.2,2.69]
[1761412319812,4.87192757,192.31,192.2,2.69]
[1761412319813,4.43663479,192.3,192.2,2.69]
[1761412320012,4.43663479,192.29,192.2,2.69]
[1761412320212,4.43663479,192.28,192.2,2.69]
[1761412320414,4.43663479,192.3,192.2,2.69]
[1761412320608,4.43663479,192.29,192.2,2.69]
[1761412320811,4.43663479,192.28,192.2,2.69]
[1761412321012,4.43663479,192.3,192.2,2.69]
[1761412321211,4.43663479,192.29,192.2,2.69]
[1761412321410,4.43663479,192.3,192.2,2.69]
[1761412321611,4.43663479,192.29,192.2,2.69]
[1761412321812,4.43663479,192.3,192.2,2.69]
[1761412322011,4.43663479,192.29,192.2,2.69]
[1761412322213,4.43663479,192.3,192.2,2.69]
[1761412322412,4.43663479,192.29,192.2,2.69]
[1761412322614,4.43663479,192.3,192.2,2.69]
[1761412322815,4.43663479,192.29,192.2,2.69]
[1761412323020,4.43663479,192.3,192.2,2.69]
[1761412323213,4.43663479,192.29,192.2,2.69]
[1761412323416,4.43663479,192.3,192.2,2.69]
[1761412323619,4.43663479,192.29,192.2,2.69]
[1761412323918,4.43663479,192.3,192.2,2.69]
[1761412324117,4.43663479,192.29,192.2,2.69]
[1761412324317,4.43663479,192.3,192.2,2.69]
[1761412324516,4.43663479,192.29,192.2,2.69]
[1761412324719,4.43663479,192.3,192.2,2.69]
[1761412324918,4.43663479,192.29,192.2,2.69]
[1761412325220,4.43663479,192.3,192.2,2.69]
[1761412325419,4.43663479,192.29,192.2,2.69]
[1761412325612,4.43663479,192.3,192.2,2.69]
[1761412325813,4.43663479,192.29,192.2,2.69]
[1761412326015,4.43663479,192.3,192.2,2.69]
[1761412326214,4.43663479,192.29,192.2,2.69]
[1761412326414,4.43663479,192.3,192.2,2.69]
[1761412326616,4.43663479,192.29,192.2,2.69]
[1761412326822,4.43663479,192.3,192.2,2.69]
[1761412327011,4.43663479,192.29,192.2,2.69]
[1761412327213,4.43663479,192.3,192.2,2.69]
[1761412327409,4.43663479,192.29,192.2,2.69]
[1761412327609,4.43663479,192.3,192.2,2.69]
[1761412327821,4.43663479,192.29,192.2,2.69]
[1761412328019,4.43663479,192.3,192.2,2.69]
[1761412328220,4.43663479,192.29,192.2,2.69]
[1761412328418,4.43663479,192.3,192.2,2.69]
[1761412328618,4.43663479,192.29,192.2,2.69]
[1761412328813,4.43663479,192.3,192.2,2.69]
[1761412329015,4.43663479,192.29,192.2,2.69]
[1761412329218,4.43663479,192.3,192.2,2.69]
[1761412329521,4.43663479,192.29,192.2,2.69]
[1761412329719,4.43663479,192.3,192.2,2.69]
[1761412329920,4.43663479,192.29,192.2,2.69]
[1761412330120,4.43663479,192.3,192.2,2.69]
[1761412330321,4.43663479,192.29,192.2,2.69]
[1761412330521,4.43663479,192.3,192.2,2.69]
[1761412330716,4.43663479,192.29,192.2,2.69]
[1761412330918,4.43663479,192.3,192.2,2.69]
[1761412331118,4.43663479,192.29,192.2,2.69]
[1761412331412,4.43663479,192.3,192.2,2.69]
[1761412331615,4.43663479,192.29,192.2,2.69]
[1761412331814,4.43663479,192.3,192.2,2.69]
[1761412337528,4.43663479,192.31,192.2,2.69]
[1761412337720,4.43663479,192.3,192.2,2.69]
[1761412337920,4.43663479,192.31,192.2,2.69]
[1761412338125,4.43663479,192.3,192.2,2.69]
[1761412338325,4.43663479,192.31,192.2,2.69]
[1761412338625,4.43663479,192.3,192.2,2.69]
[1761412338820,4.43663479,192.31,192.2,2.69]
[1761412339019,4.43663479,192.3,192.2,2.69]
[1761412339220,4.43663479,192.31,192.2,2.69]
[1761412339420,4.43663479,192.3,192.2,2.69]
[1761412348248,4.42965553,192.29,192.2,2.69]
[1761412348441,4.42965553,192.3,192.2,2.69]
[1761412348642,4.42965553,192.29,192.2,2.69]
[1761412348847,4.42965553,192.3,192.2,2.69]
[1761412349039,4.42965553,192.29,192.2,2.69]
[1761412349244,4.42965553,192.3,192.2,2.69]
[1761412349445,4.42965553,192.29,192.2,2.69]
[1761412349749,4.42965553,192.3,192.2,2.69]
[1761412349950,4.42965553,192.29,192.2,2.69]
[1761412350252,4.42965553,192.3,192.2,2.69]
[1761412350549,4.42965553,192.29,192.2,2.69]
[1761412350751,4.42965553,192.3,192.2,2.69]
[1761412351047,4.42965553,192.29,192.2,2.69]
[1761412351248,4.42965553,192.3,192.2,2.69]
[1761412351449,4.42965553,192.29,192.2,2.69]
[1761412351639,4.42965553,192.3,192.2,2.69]
[1761412351843,4.42965553,192.29,192.2,2.69]
[1761412352050,4.42965553,192.3,192.2,2.69]
[1761412352250,4.42965553,192.29,192.2,2.69]
[1761412352451,4.42965553,192.3,192.2,2.69]
[1761412352750,4.42965553,192.29,192.2,2.69]
[1761412352950,4.42965553,192.3,192.2,2.69]
[1761412353152,4.425203,192.29,192.2,2.69]
[1761412353552,4.87192757,192.31,192.2,2.69]
[1761412353753,4.42565275,192.3,192.2,2.69]
[1761412353951,4.42565275,192.29,192.2,2.69]
[1761412354152,4.42565275,192.3,192.2,2.69]
[1761412354454,4.42565275,192.29,192.21,2.83]
[1761412354755,4.42565275,192.3,192.21,2.83]
[1761412354948,4.42565275,192.29,192.21,2.83]
[1761412355148,4.42565275,192.3,192.21,2.83]
[1761412355351,4.87192757,192.38,192.27,2.83]
[1761412355654,4.42436263,192.37,192.28,2.83]
[1761412355854,4.42436263,192.36,192.28,2.83]
[1761412356044,4.42436263,192.35,192.28,2.83]
[1761412356241,4.42436263,192.37,192.28,2.83]
[1761412356645,4.87192757,192.39,192.28,2.83]
[1761412356646,4.42436263,192.38,192.28,2.83]
[1761412356852,4.42436263,192.37,192.28,2.83]
[1761412357045,4.42436263,192.38,192.28,2.83]
[1761412358653,4.87192757,192.39,192.28,2.83]
[1761412358951,9.2962902,192.39,192.28,2.83]
[1761412359151,4.42436263,192.38,192.28,2.83]
[1761412359554,4.42436263,192.39,192.28,2.83]
[1761412360152,9.2962902,192.4,192.28,2.83]
[1761412360753,4.42436263,192.4,192.28,2.83]
[1761412374171,15.85359284,192.41,192.28,2.83]
[1761412374373,4.87192757,192.44,192.28,2.83]
[1761412374565,4.400493,192.44,192.28,2.83]
[1761412378876,19.93054469,192.44,192.28,2.83]
[1761412379075,4.400493,192.43,192.28,2.83]
[1761412379478,63.11192757,192.45,192.28,2.83]
[1761412379479,4.400493,192.44,192.28,2.83]
[1761412382776,5.61662337,192.44,192.3,2.71]
[1761412383077,1.21613037,192.44,192.33,2.71]
[1761412384079,1.21613037,192.46,192.33,2.71]
[1761412385172,9.27242057,192.49,192.33,2.71]
[1761412385375,1.21613037,192.47,192.33,2.71]
[1761412385877,16.90425775,192.47,192.33,2.71]
[1761412389274,1.21613037,192.47,192.33,2.71]
[1761412390580,1.21613037,192.47,192.35,1.21613037]
[1761412390978,1.21613037,192.47,192.36,2.72]
[1761412391379,5.55338385,192.47,192.36,2.72]
[1761412395080,5.55549597,192.47,192.36,2.72]
[1761412397276,4.3393656,192.47,192.36,2.72]
[1761412397482,1.21613037,192.46,192.36,2.72]
[1761412400884,1.21613037,192.43,192.36,2.72]
[1761412402184,1.21613037,192.43,192.32,1.21613037]
[1761412402185,1.21613037,192.43,192.33,2.72]
[1761412403483,4.87192757,192.45,192.33,2.72]
[1761412403680,6.08805794,192.45,192.33,2.72]
[1761412408192,1.21613037,192.44,192.33,2.72]
[1761412411388,4.3393656,192.45,192.34,2.72]
[1761412411588,1.21613037,192.46,192.34,2.72]
[1761412426505,10.43891562,192.46,192.34,2.72]
[1761412426704,4.35085768,192.45,192.34,2.72]
[1761412426899,6.08805794,192.46,192.34,2.72]
[1761412427204,10.43891562,192.46,192.34,2.72]
[1761412427406,4.35085768,192.45,192.34,2.72]
[1761412430007,9.22278525,192.45,192.34,2.72]
[1761412430410,1.21613037,192.43,192.34,2.72]
[1761412444824,4.86393093,192.45,192.34,2.72]
[1761412467160,4.86393093,192.44,192.34,2.72]
[1761412476266,4.8715514,192.44,192.34,2.72]
[1761412477270,4.8715514,192.44,192.35,2.75]
[1761412477460,4.8715514,192.45,192.36,2.75]
[1761412477862,4.8715514,192.46,192.37,2.75]
[1761412478265,4.8715514,192.47,192.37,2.75]
[1761412479264,4.8715514,192.48,192.37,2.75]
[1761412485067,15.21981257,192.5,192.37,2.75]
[1761412485278,6.47637578,192.51,192.37,2.75]
[1761412485475,1.89951502,192.52,192.37,2.75]
[1761412486974,17.62408607,192.52,192.37,2.75]
[1761412488879,4.86286184,192.48,192.37,2.75]
[1761412490481,6.76237686,192.48,192.37,2.75]
[1761412490885,4.86286184,192.47,192.37,2.75]
[1761412491685,4.86286184,192.46,192.37,2.75]
[1761412497185,4.86286184,192.45,192.37,2.75]
[1761412497386,4.86286184,192.46,192.37,2.75]
[1761412498188,4.86286184,192.45,192.37,2.75]
[1761412498386,4.86286184,192.46,192.37,2.75]
[1761412498782,4.86286184,192.47,192.37,2.75]
[1761412503704,4.86286184,192.46,192.37,2.75]
[1761412504706,1.2158983,192.43,192.37,2.75]
[1761412511397,1.2158983,192.43,192.33,2.76]
[1761412511798,1.2158983,192.4,192.33,2.76]
[1761412512602,1.2158983,192.36,192.33,2.76]
[1761412513707,1.2158983,192.41,192.33,2.76]
[1761412520808,6.07876014,192.41,192.33,2.76]
[1761412523209,1.2158983,192.41,192.33,2.76]
[1761412525414,4.86286184,192.4,192.33,2.76]
[1761412526315,6.07876014,192.41,192.33,2.76]
[1761412528816,4.86286184,192.41,192.33,2.76]
[1761412533423,6.06756209,192.41,192.33,2.76]
[1761412540629,4.86286184,192.4,192.28,2.82]
[1761412540828,1.20470025,192.38,192.28,2.82]
[1761412544525,1.20470025,192.35,192.28,2.82]
[1761412554445,1.20470025,192.37,192.28,2.82]
[1761412561958,1.20470025,192.34,192.28,2.82]
[1761412563459,1.20470025,192.31,192.28,2.82]
[1761412563648,1.20470025,192.31,192.21,2.81]
[1761412564050,1.20470025,192.27,192.21,2.81]
[1761412566661,2.19865155,192.31,192.21,2.81]
[1761412602191,7.06151339,192.31,192.21,2.81]
[1761412605688,4.86286184,192.3,192.21,2.81]
[1761412608393,4.86286184,192.29,192.21,2.81]
[1761412618500,4.86286184,192.28,192.21,2.81]
[1761412621299,15.61,192.42,192.21,2.81]
[1761412621300,4.86286184,192.3,192.21,2.81]
[1761412621600,4.86286184,192.31,192.21,2.81]
[1761412624308,4.87172229,192.31,192.21,2.81]
[1761412624709,4.87172229,192.29,192.21,2.81]
[1761412625405,7.07037384,192.29,192.21,2.81]
[1761412626612,4.87172229,192.28,192.21,2.81]
[1761412627004,4.87172229,192.27,192.21,2.81]
[1761412628716,1.40778029,192.24,192.21,2.81]
[1761412636416,1.40778029,192.24,192.16,2.64]
[1761412663445,1.40778029,192.21,192.16,2.64]
[1761412671350,1.40778029,192.21,192.17,2.81]
[1761412685356,1.40778029,192.18,192.17,2.81]
[1761412690757,2.20027312,192.23,192.17,2.81]
[1761412716680,7.07199541,192.28,192.17,2.81]
[1761412719280,2.20027312,192.28,192.17,2.81]
[1761412719482,4.87172229,192.26,192.17,2.81]
[1761412719784,2.20027312,192.24,192.17,2.81]
[1761412740306,7.07013503,192.24,192.17,2.81]
[1761412741306,2.20027312,192.24,192.17,2.81]
[1761412741701,7.07013503,192.24,192.17,2.81]
[1761412742010,4.86986191,192.23,192.17,2.81]
[1761412742804,2.75,192.19,192.11,6.4624484]
[1761412743002,2.75,192.19,191.83,72.9731]
[1761412743003,2.75,192.19,192.09,6.4624484]
[1761412744807,2.75,192.19,192.1,2.78]
[1761412749214,2.82,192.22,192.1,2.78]
[1761412751711,2.82,192.21,192.1,2.78]
[1761412752711,1.40882354,192.16,192.1,2.78]
[1761412755920,4.22882354,192.19,192.1,2.78]
[1761412756117,1.40882354,192.19,192.1,2.78]
[1761412763920,1.40882354,192.22,192.11,2.77]
[1761412764119,4.22882354,192.22,192.11,2.77]
[1761412764321,2.82,192.21,192.11,2.77]
[1761412768628,6.54877384,192.2,192.11,2.77]
[1761412768926,3.72877384,192.19,192.11,2.77]
[1761412771429,5.13759738,192.19,192.11,2.77]
[1761412774135,3.72877384,192.18,192.11,2.77]
[1761412775731,1.40882354,192.16,192.11,2.77]
[1761412775937,1.40882354,192.13,192.11,2.77]
[1761412776130,4.22882354,192.13,192.11,2.77]
[1761412789941,2.7,192.12,192.08,2.64]
[1761412790939,4.10882354,192.13,192.08,2.64]
[1761412792742,1.40882354,192.13,192.08,2.64]
[1761412792948,1.40882354,192.16,192.08,2.64]
[1761412793149,4.10882354,192.16,192.08,2.64]
[1761412795549,1.40882354,192.15,192.08,2.64]
[1761412800149,4.23882354,192.15,192.08,2.64]
[1761412803543,1.40882354,192.15,192.08,2.64]
[1761412808461,4.15882354,192.15,192.08,2.64]
[1761412814759,2.75,192.15,192.08,2.64]
[1761412822362,2.75,192.14,192.08,2.64]
[1761412822571,2.75,192.13,192.08,2.64]
[1761412864305,2.82,192.15,192.08,2.64]
[1761412864505,3.72836671,192.14,192.08,2.64]
[1761412864894,6.54836671,192.17,192.08,2.64]
[1761412865201,3.72836671,192.16,192.08,2.64]
[1761412865404,2.82,192.17,192.08,2.64]
[1761412865605,3.72839944,192.16,192.08,2.64]
[1761412865806,2.82,192.17,192.08,2.64]
[1761412866004,3.72839944,192.16,192.08,2.64]
[1761412866199,2.82,192.17,192.08,2.64]
[1761412866506,3.72840215,192.16,192.08,2.64]
[1761412866700,2.82,192.17,192.08,2.64]
[1761412866902,3.72840215,192.16,192.08,2.64]
[1761412867205,3.72769392,192.16,192.08,2.64]
[1761412868709,6.53769392,192.16,192.08,2.64]
[1761412868909,2.81,192.16,192.08,2.64]
[1761412870000,6.53704954,192.16,192.08,2.64]
[1761412870304,2.81,192.16,192.08,2.64]
[1761412887136,2.81,192.21,192.1,12.38400717]
[1761412887326,2.81,192.24,192.14,2.69]
[1761412887522,2.81,192.24,192.17,2.69]
[1761412892639,2.81,192.24,192.2,2.69]
[1761412894943,2.81,192.24,192.16,4.09860331]
[1761412895144,2.81,192.24,192.16,66.75860331]
[1761412895340,2.81,192.24,192.16,65.35]
[1761412897641,2.81,192.24,192.12,4.684]
[1761412897843,2.81,192.21,192.13,65.37]
[1761412898043,2.81,192.21,192.14,2.69]
[1761412905053,2.81,192.21,192.15,2.62]
[1761412905351,2.81,192.21,192.15,65.3]
[1761412905953,2.81,192.21,192.16,2.62]
[1761412925677,2.69,192.27,192.16,2.62]
[1761412928678,2.69,192.27,192.17,2.83]
[1761412947295,2.69,192.27,192.18,2.83]
[1761412984115,2.69,192.27,192.2,2.72]
[1761413008345,2.62,192.26,192.2,2.72]
[1761413009245,2.62,192.26,192.21,2.78]
[1761413022053,7.69544389,192.32,192.21,2.78]
[1761413022258,2.83,192.31,192.21,2.78]
[1761413043374,2.83,192.31,192.22,2.71]
[1761413045772,2.83,192.31,192.23,2.71]
[1761413054282,1.40675925,192.29,192.21,6.4450709]
[1761413054477,2.82,192.28,192.21,2.78]
[1761413064100,2.82,192.28,192.2,2.78]
[1761413093518,2.83,192.27,192.2,2.78]
[1761413129361,4.8716456,192.27,192.2,2.78]
[1761413129562,2.83,192.26,192.2,2.78]
[1761413136970,7.7016456,192.26,192.2,2.78]
[1761413137968,2.83,192.25,192.2,2.78]
[1761413223846,2.83,192.25,192.16,3.14443847]
[1761413225846,2.83,192.25,192.17,2.78]
[1761413234856,7.70618508,192.25,192.17,2.78]
[1761413235057,2.88,192.24,192.17,2.78]
[1761413237363,2.88,192.23,192.15,106.86120227]
[1761413238062,2.88,192.23,192.15,109.75120227]
[1761413238561,2.88,192.23,192.16,2.89]
[1761413248971,4.6828,192.17,192.16,2.89]
[1761413266784,4.6828,192.17,192.16,3.93]
[1761413282299,2.61,192.22,192.16,3.93]
[1761413282491,2.61,192.22,192.16,2.89]
[1761413298413,2.61,192.22,192.16,9.34158777]
[1761413300615,2.61,192.22,192.17,2.74]
[1761413300817,2.61,192.22,192.18,65.28]
[1761413304320,2.61,192.22,192.18,62.54]
[1761413305319,2.61,192.22,192.16,9.19158777]
[1761413305519,2.61,192.22,192.16,2.74]
[1761413305723,2.61,192.22,192.17,62.54]
[1761413306118,2.61,192.22,192.18,2.74]
[1761413306514,2.61,192.22,192.17,65.28]
[1761413313732,2.61,192.22,192.18,2.74]
[1761413330641,2.61,192.22,192.17,62.54]
[1761413331645,2.61,192.22,192.15,109.68120227]
[1761413331838,2.61,192.22,192.16,62.54]
[1761413336249,2.61,192.22,192.16,65.36]
[1761413343450,2.61,192.22,192.14,2.68]
[1761413343646,2.61,192.22,192.14,65.22]
[1761413344051,2.19941667,192.24,192.14,2.68]
[1761413344052,2.63,192.2,192.14,2.68]
[1761413344459,2.63,192.2,192.11,65.22]